Cogmind - Beta 14 @@@ ROGUE MODE // 2025.01.15 @ 19:37:33 Player: Peregrine Result: Self-destructed Performance ------------- Evolutions (7) 3500 Regions Visited (16) 3200 Robots Destroyed (121) 605 Value Destroyed (4631) 4631 Prototype IDs (40) 800 Alien Tech Used (2) 400 Bonus (2630) 2630 TOTAL SCORE: 15766 Bonus ------- Triggered Max Security 1000 High Alert Combat Kills 353 Entered DSFs 1000 Aligned with FarCom 300 Friendly Fire -23 Cogmind --------- Core Integrity 382/1300 Matter 299/700 Energy 4/100 System Corruption 13% Temperature Cool (0) Movement Flying (42) Location -3/Quarantine Parts ------- > --- POWER (2) -------- (None) > --- PROPULSION (6) --- Impulse Thruster Array Impulse Thruster Array > --- UTILITY (9) ------ Advanced Matter Compressor Advanced Visual Processing Unit Advanced Target Analyzer Advanced Target Analyzer Graphene Brace Hacking Suite > --- WEAPON (4) ------- Nova Cannon > --- INVENTORY (5) ---- Improved Antigrav System Improved Antigrav System Heavy Dispersion Rifle Peak State ------------ > --- POWER ------------ Micro Antimatter Reactor > --- PROPULSION ------- Improved Antigrav System Improved Antigrav System Improved Diametric Drive Impulse Thruster Array > --- UTILITY ---------- Advanced Cryofiber Web Advanced Matter Compressor Advanced Visual Processing Unit Improved Melee Analysis Suite Graphene Brace Hacking Suite Hacking Suite Hacking Suite System Shield > --- WEAPON ----------- Backup Laser III Enhanced Force Rifle Heavy Dispersion Rifle Lance > --- INVENTORY -------- Antimatter Reactor Experimental Sensor Array Nova Cannon Linear Accelerator [Rating: 116] Favorites ----------- Power Ion Engine Engine Ion Engine Power Core Neutrino Core Reactor Antimatter Reactor Propulsion Armored Treads Treads Armored Treads Leg Improved Aluminum Leg Wheel Compact Wheel Hover Unit Improved Antigrav System Flight Unit Impulse Thruster Array Utility Experimental Sensor Array Device Experimental Sensor Array Storage Small Storage Unit Processor Armor Integrity Analyzer Hackware Hacking Suite Protection Improved Medium Armor Plating Weapon XL Autogun Subcomponent Energy Gun Small Laser Energy Cannon Plasma Cannon Ballistic Gun XL Autogun Subcomponent Ballistic Cannon Magnetic Acceleration Cannon Impact Weapon Great Maul Slashing Weapon Katana Piercing Weapon Lance Special Melee Weapon Improved Datajack Build | -11 -10 -9 -9 -9 -8 -8 -7 -6 -6 -6 -6 -5 -4 -4 -3 -3 ------- Run | Yrd Mat Mat Min Exi Min Mat Fac Fac Was Fac DSF Fac Fac DSF Res Qua Slots Evolved 14 | . . 2 . . . 2 2 2 . . . 2 2 . 2 . Power 1 | . . . . . . . . . . . . . 1 . . . Propulsion 4 | . . 2 . . . . . . . . . . . . 2 . Utility 7 | . . . . . . . 2 2 . . . 2 1 . . . Weapon 2 | . . . . . . 2 . . . . . . . . . . Parts Attached 167 | . 1 16 3 4 2 12 14 5 11 . 16 16 1 18 36 12 Power 20 | . . 1 . . . 1 . . 3 . 1 1 1 3 8 1 Engine 5 | . . 1 . . . 1 . . . . . . 1 . 1 1 Core 2 | . . . . . . . . . . . . . . 1 1 . Reactor 13 | . . . . . . . . . 3 . 1 1 . 2 6 . Propulsion 43 | . . 8 . 2 . 8 . 2 2 . 3 1 . 3 10 4 Treads 19 | . . . . 2 . 8 . 2 2 . 3 1 . 1 . . Leg 4 | . . 4 . . . . . . . . . . . . . . Wheel 2 | . . 2 . . . . . . . . . . . . . . Hover 9 | . . . . . . . . . . . . . . 2 7 . Flight 9 | . . 2 . . . . . . . . . . . . 3 4 Utility 63 | . 1 2 2 1 2 1 9 3 3 . 9 8 . 9 9 4 Device 33 | . 1 1 2 . 1 . 2 2 1 . 4 6 . 6 5 2 Storage 7 | . . . . 1 1 1 2 . 1 . . . . . 1 . Processor 10 | . . . . . . . 2 1 1 . 2 1 . . 1 2 Hackware 5 | . . . . . . . . . . . 1 . . 3 1 . Protection 8 | . . 1 . . . . 3 . . . 2 1 . . 1 . Artifact . | . . . . . . . . . . . . . . . . . Weapon 41 | . . 5 1 1 . 2 5 . 3 . 3 6 . 3 9 3 Energy Gun 10 | . . 3 1 1 . . . . 1 . . 1 . . 3 . Energy Cannon 8 | . . . . . . . . . . . 1 1 . . 4 2 Ballistic Gun 15 | . . 1 . . . 2 4 . 2 . . 3 . 2 1 . Ballistic Cannon 3 | . . . . . . . . . . . 2 1 . . . . Launcher . | . . . . . . . . . . . . . . . . . Special Weapon . | . . . . . . . . . . . . . . . . . Impact Weapon 1 | . . . . . . . 1 . . . . . . . . . Slashing Weapon 1 | . . 1 . . . . . . . . . . . . . . Piercing Weapon 2 | . . . . . . . . . . . . . . . 1 1 Special Melee Weapon 1 | . . . . . . . . . . . . . . 1 . . Unidentified Prototypes 14 | . . . 1 . . . 1 . . . 1 1 . 1 7 2 Parts Lost 45 | . . 12 1 . . . . . 1 . . 3 . 6 13 9 Power 6 | . . 1 . . . . . . . . . 1 . . 3 1 Propulsion 15 | . . 5 1 . . . . . . . . . . . 7 2 Utility 11 | . . 2 . . . . . . . . . 1 . 2 1 5 Weapon 13 | . . 4 . . . . . . 1 . . 1 . 4 2 1 Highest Loss Streak 6 | . . 6 1 . . . . . 1 . . 2 . 5 4 5 To Critical Strikes . | . . . . . . . . . . . . . . . . . Average Slot Usage (%) 78 | . 90 75 68 70 88 68 89 100 91 86 78 83 74 76 67 55 Engine 6 | . 14 5 11 11 11 9 7 6 2 . . . 1 3 . 2 Reactor 1 | . . . . . . . . . 3 6 6 5 5 4 5 . Treads 14 | . . . . 4 22 29 30 26 19 13 12 11 10 4 . . Leg 5 | . 28 18 13 11 11 2 . . . . . . . . . . Hover 1 | . . . . . . . . . . . . . . 5 9 . Flight 1 | . . 11 . . . . . . . . . . . . 5 13 Device 9 | . 5 6 9 10 5 9 5 13 7 6 8 21 21 24 10 12 Storage 8 | . 14 11 11 11 16 9 7 6 6 6 6 5 5 2 2 4 Processor 5 | . . . . . . . 9 13 18 20 19 14 10 5 5 6 Hackware 2 | . . . . . . . . . . . . . . 5 18 9 Protection 2 | . . . 1 . . . 5 6 6 6 2 1 . . . . Energy Gun 7 | . 28 14 20 22 22 . . . 1 6 1 . 5 1 . . Ballistic Gun 8 | . . 2 . . . 9 18 20 21 20 19 13 5 11 . . Peak Build Rating 116 | 6 7 10 17 21 21 68 75 71 84 84 88 105 97 111 116 103 Average Rating 52 | 6 6 7 12 17 17 54 65 68 73 84 83 98 94 88 91 90 On Entrance 49 | 6 6 7 10 17 14 21 68 59 66 84 84 82 101 97 58 54 Naked Turns . | . . . . . . . . . . . . . . . . . Heaviest Build 133 | 14 15 15 15 52 52 71 84 79 118 118 119 133 132 133 89 16 Greatest Support 140 | 20 20 32 23 40 40 86 84 84 140 140 140 140 140 140 60 48 Greatest Overweight (x) 2 | . . 2 1 1 1 1 . . . . 1 . . 2 1 1 Average Overweight (x) . | . . . . . . . . . . . . . . . . . Largest Inventory Capacity 25 | 8 8 8 8 20 20 20 25 20 25 25 25 25 25 25 5 5 Average Capacity 14 | 8 8 8 8 8 13 15 20 20 22 25 25 25 25 13 5 5 Most Carried 25 | 6 7 8 8 9 9 20 20 20 25 22 25 24 17 17 5 5 Average Carried 12 | 6 6 5 7 8 8 10 18 19 19 22 22 19 16 7 4 4 Final Capacity 25 | 8 8 8 8 20 8 20 20 20 25 25 25 25 25 5 5 5 Final Carried 25 | 6 6 7 8 9 8 19 20 19 22 22 25 16 17 5 5 3 Class Distribution -------------------- 29% | Mutant 22% | Scavenger-Skirmisher 17% | Skirmisher 7% | Hacker-Mutant 6% | Scavenger-Gunner 5% | Scavenger-Mutant 4% | Hacker-Scout 3% | Scavenger-Tank Dominant Class ---------------- Mutant | -10/Materials Scavenger-Mutant | -9/Materials Mutant | -9/Mines Mutant | -9/Exiles Skirmisher | -8/Mines Skirmisher | -8/Materials Scavenger-Skirmisher | -7/Factory Scavenger-Skirmisher | -6/Factory Scavenger-Gunner | -6/Waste Scavenger-Gunner | -6/Factory Skirmisher | -6/DSF Skirmisher | -5/Factory Skirmisher | -4/Factory Infiltrator-Ninja | -4/DSF Hacker-Mutant | -3/Research Hacker-Scout | -3/Quarantine Resources | -11 -10 -9 -9 -9 -8 -8 -7 -6 -6 -6 -6 -5 -4 -4 -3 -3 ----------- Run | Yrd Mat Mat Min Exi Min Mat Fac Fac Was Fac DSF Fac Fac DSF Res Qua Matter Collected 4675 | 200 10 203 23 80 . 519 1441 . 400 . 342 308 23 502 442 182 Remotely . | . . . . . . . . . . . . . . . . . Salvage Created 6802 | . 206 637 189 . . 706 1746 . 1349 . 510 246 23 393 552 245 Parts 337 | . 16 35 5 . . 50 104 . 22 . 22 12 3 15 31 22 Haulers Intercepted 3 | . . . . . . . . . . . . . . . 3 . Recyclers Shooed 6 | . . 4 1 . . . . . . . . . . . 1 . Parts Field Recycled . | . . . . . . . . . . . . . . . . . Retrieved Matter . | . . . . . . . . . . . . . . . . . Parts Self-Destructed . | . . . . . . . . . . . . . . . . . Prevented . | . . . . . . . . . . . . . . . . . Kills | -11 -10 -9 -9 -9 -8 -8 -7 -6 -6 -6 -6 -5 -4 -4 -3 -3 ------- Run | Yrd Mat Mat Min Exi Min Mat Fac Fac Was Fac DSF Fac Fac DSF Res Qua Combat Hostiles Destroyed 79 | . 4 14 3 . . 12 24 . 5 . 4 4 . 5 2 2 Melee 3 | . . . . . . . . . . . . . . . 1 2 Guns 71 | . 3 13 3 . . 12 24 . 5 . 4 2 . 4 1 . Cannons 3 | . . . . . . . . . . . . 2 . 1 . . AOE 1 | . 1 . . . . . . . . . . . . . . . Classes Destroyed 18 | . 2 5 1 . . 5 2 . 1 . . . . . 2 . Worker 16 | . . . 2 . . . 6 . . . . . . . 8 . Builder 10 | . 1 . . . . . 6 . . . . 1 . . . 2 Tunneler 2 | . . . . . . . . . . . . . . . 2 . Hauler 3 | . . . . . . . . . . . . . . . 3 . Recycler 1 | . . . . . . . 1 . . . . . . . . . Mechanic 1 | . . 1 . . . . . . . . . . . . . . Operator 2 | . . 1 . . . . . . . . . . 1 . . . Watcher 7 | . . . . . . 2 3 . . . . . . . . 2 Swarmer 3 | . . 3 . . . . . . . . . . . . . . Grunt 36 | . 4 8 3 . . 5 15 . . . . . . . 1 . Brawler 2 | . . . . . . 1 1 . . . . . . . . . Duelist 1 | . . 1 . . . . . . . . . . . . . . Sentry 8 | . . 2 . . . 2 3 . . . . . . 1 . . Specialist 9 | . . . . . . 2 . . . . 1 2 . 4 . . Hunter 5 | . . . . . . 1 1 . . . 3 . . . . . Programmer 8 | . . . . . . . 4 . . . . 1 . . 1 2 Heavy 2 | . . . . . . 1 . . . . . 1 . . . . Compactor 5 | . . . . . . . . . 5 . . . . . . . Best Kill Streak 10 | . 5 6 3 . . 6 10 . 3 . 2 2 2 3 7 2 Combat Bots Only 6 | . 4 6 3 . . 6 4 . 3 . 2 2 . 3 1 2 Max Kills in Single Turn 4 | . 2 1 1 . . 1 4 . 1 . 1 1 1 1 2 1 Gunslinging 1 | . 1 . . . . . . . . . . . . . . . Exploded 1 | . 1 . . . . . . . . . . . . . . . Melee 1 | . . . . . . . . . . . . . . . 1 1 Uniques/NPCs Destroyed . | . . . . . . . . . . . . . . . . . Combat | -11 -10 -9 -9 -9 -8 -8 -7 -6 -6 -6 -6 -5 -4 -4 -3 -3 -------- Run | Yrd Mat Mat Min Exi Min Mat Fac Fac Was Fac DSF Fac Fac DSF Res Qua Hostile Shots Fired 868 | . 1 128 15 . . 46 87 . 1 . 36 77 . 138 193 146 Missed 335 | . 1 32 3 . . 10 32 . . . 9 23 . 55 92 78 Damage Taken 9487 | . . 1159 147 . . 747 638 . 47 . 403 1796 . 1091 2371 1088 Core 1845 | . . 272 50 . . 147 76 . . . 23 331 . 183 436 327 Absorbed by Shields . | . . . . . . . . . . . . . . . . . Core Remaining (%) 78 | 100 100 . . . 19 73 89 . . . 97 66 . 84 . . Volleys Fired 333 | . 7 80 13 . . 31 76 . 26 . 19 39 2 22 16 2 Largest 4 | . 2 2 2 . . 1 4 . 4 . 4 4 4 4 3 1 Hottest 226 | . 80 90 96 . . 60 80 . 80 . 129 141 226 226 197 113 Shots Fired 729 | . 14 119 26 . . 31 177 . 96 . 59 116 8 53 29 1 Gun 676 | . 14 119 26 . . 31 177 . 96 . 59 83 4 50 17 . Cannon 53 | . . . . . . . . . . . . 33 4 3 12 1 Launcher . | . . . . . . . . . . . . . . . . . Special . | . . . . . . . . . . . . . . . . . Kinetic 552 | . . 18 . . . 31 177 . 96 . 57 106 4 50 13 . Thermal 108 | . . 62 26 . . . . . . . 2 10 2 1 4 1 Explosive . | . . . . . . . . . . . . . . . . . Electromagnetic 69 | . 14 39 . . . . . . . . . . 2 2 12 . Robot Hit Streak 19 | . 6 12 11 . . 9 12 . 13 . 10 19 3 10 8 . Robot Miss Streak 5 | . 2 4 3 . . 4 4 . 3 . 5 4 2 4 5 . Penetration Max 1 | . . . . . . . . . . . . . . 1 1 . Secondary Targets 3 | . 1 2 . . . . . . . . . . . . . . Max Gunslinging Chain 1 | . 1 1 . . . . . . . . . . . . . . Shots Hit Robots 520 | . 10 79 22 . . 30 116 . 66 . 32 73 3 39 38 12 Core Hits 238 | . 6 27 11 . . 24 74 . 20 . 19 15 2 16 17 7 Critical Kills 2 | . . . . . . . . . . . . . . . 2 . Critical Parts Destroyed 1 | . . . . . . . . . . . . 1 . . . . Critical Strikes 10 | . . 3 1 . . . . . . . . 1 . . 5 . Burn 3 | . . 2 1 . . . . . . . . . . . . . Destroy 4 | . . . . . . . . . . . . 1 . . 3 . Corrupt 1 | . . 1 . . . . . . . . . . . . . . Impale 2 | . . . . . . . . . . . . . . . 2 . Melee Attacks 67 | . . 1 1 . . . 1 . . . . . . . 47 17 Impact 1 | . . . . . . . 1 . . . . . . . . . Slashing 2 | . . 1 1 . . . . . . . . . . . . . Piercing 64 | . . . . . . . . . . . . . . . 47 17 Sneak Attacks 15 | . . 1 1 . . . . . . . . . . . 11 2 Combat Hostiles . | . . . . . . . . . . . . . . . . . Follow-up Attacks . | . . . . . . . . . . . . . . . . . Damage Inflicted 14094 | . 185 1119 351 . 8 1710 3529 . 1443 . 509 1808 82 908 1824 618 Guns 10879 | . 144 1045 270 . . 1710 3184 . 1443 . 509 1249 . 846 479 . Cannons 812 | . . . . . . . . . . . . 549 82 56 125 . Explosions 377 | . 41 . . . . . 336 . . . . . . . . . Melee 1952 | . . 68 73 . . . . . . . . . . . 1193 618 Ramming 74 | . . 6 8 . 8 . 9 . . . . 10 . 6 27 . Kinetic 10005 | . . 191 . . . 1710 3184 . 1443 . 491 1674 31 839 442 . Thermal 1212 | . 41 532 270 . . . 112 . . . 18 124 51 27 37 . Explosive . | . . . . . . . . . . . . . . . . . Electromagnetic 851 | . 144 322 . . . . 224 . . . . . . 36 125 . Impact . | . . . . . . . . . . . . . . . . . Slashing 141 | . . 68 73 . . . . . . . . . . . . . Piercing 1811 | . . . . . . . . . . . . . . . 1193 618 Highest Corruption 20 | . . . . . . . . . 20 20 20 2 . . 8 13 Average Corruption 9 | . . . . . . . . . 10 20 13 1 . . 6 9 Corruption Purged 16 | . . . . . . . . . . . 16 . . . . . Corruption Blocked . | . . . . . . . . . . . . . . . . . Effects 58 | . . . . . . . . . 13 2 17 . . . 14 12 Message Errors 8 | . . . . . . . . . 3 . 3 . . . 2 . Matter Fused 14 | . . . . . . . . . 1 . 3 . . . 4 6 Heat Flow Errors 7 | . . . . . . . . . . 1 3 . . . 2 1 Energy Discharges 6 | . . . . . . . . . . . 2 . . . 2 2 Parts Rejected 2 | . . . . . . . . . . . 2 . . . . . Data Loss (minor) 8 | . . . . . . . . . 3 . 2 . . . 2 1 Data Loss (major) 3 | . . . . . . . . . . 1 1 . . . 1 . Misfires 2 | . . . . . . . . . 1 . . . . . 1 . Alerts 1 | . . . . . . . . . . . 1 . . . . . Misdirections 1 | . . . . . . . . . . . . . . . . 1 Weapon Failures 6 | . . . . . . . . . 5 . . . . . . 1 Overload Shots . | . . . . . . . . . . . . . . . . . Overflow Damage 364 | . . . . . . . . . . . . 21 . . 258 85 Projectiles 31 | . . . . . . . . . . . . 21 . . 10 . Explosions . | . . . . . . . . . . . . . . . . . Melee 333 | . . . . . . . . . . . . . . . 248 85 Knockbacks 4 | . . . . . . . 1 . . . . 2 1 . . . Impact 1 | . . . . . . . 1 . . . . . . . . . Kinetic 3 | . . . . . . . . . . . . 2 1 . . . Secondary . | . . . . . . . . . . . . . . . . . Self-Inflicted Damage 15 | . . . . . . . . . . . . . . 3 12 . Shots . | . . . . . . . . . . . . . . . . . Rammed 6 | . . . . . 1 . . . . . . 1 . 1 3 . Targets Rammed 11 | . . 1 3 . 1 . 1 . . . . 1 . 1 3 . Kicked 4 | . . 1 3 . . . . . . . . . . . . . Crushed 1 | . . . . . . . 1 . . . . . . . . . Highest Temperature 557 | . 72 192 174 . . 557 520 . 219 239 155 132 258 . 384 230 Average Temperature 114 | . 28 70 74 . . 185 116 . 109 126 35 70 137 . 211 155 Received Heat Transfer 1414 | . . 384 81 . . 216 222 . . . . . . 9 433 69 Effects 11 | . . . . . . 3 8 . . . . . . . . . Shutdowns 2 | . . . . . . . 2 . . . . . . . . . Energy Bleed 2 | . . . . . . . 2 . . . . . . . . . Interference 3 | . . . . . . . 3 . . . . . . . . . Short Circuit 1 | . . . . . . 1 . . . . . . . . . . Damage (minor) 1 | . . . . . . 1 . . . . . . . . . . Damage (major) 1 | . . . . . . . 1 . . . . . . . . . Damage (core) 1 | . . . . . . 1 . . . . . . . . . . Siege Activations . | . . . . . . . . . . . . . . . . . Robots Corrupted . | . . . . . . . . . . . . . . . . . Combat Hostiles . | . . . . . . . . . . . . . . . . . Parts Fried 1 | . . 1 . . . . . . . . . . . . . . Impact Corruptions . | . . . . . . . . . . . . . . . . . Robots Melted 1 | . . 1 . . . . . . . . . . . . . . Combat Hostiles 1 | . . 1 . . . . . . . . . . . . . . Parts Melted 5 | . . 4 1 . . . . . . . . . . . . . Heat Transferred 2885 | . . 1643 731 . . . 50 . . . 37 200 100 50 74 . Parts Sabotaged 1 | . . . . . . . . . . . . . . . . 1 Parts Stolen . | . . . . . . . . . . . . . . . . . Parts Stripped . | . . . . . . . . . . . . . . . . . Power Chain Reactions 4 | . 1 . . . . . 3 . . . . . . . . . Alert | -11 -10 -9 -9 -9 -8 -8 -7 -6 -6 -6 -6 -5 -4 -4 -3 -3 ------- Run | Yrd Mat Mat Min Exi Min Mat Fac Fac Was Fac DSF Fac Fac DSF Res Qua Peak Influence 1726 | . 139 296 109 . . 298 692 322 127 81 191 197 117 211 532 1726 Initial 322 | . . . 39 . . . 135 322 112 81 56 100 95 81 90 284 Average 317 | . 36 157 55 . . 142 469 322 120 81 149 129 115 164 321 1664 Maximum Alert Level 5 | . . 1 . . . 1 2 1 . . . . . 1 2 5 Low Security (%) 49 | 100 100 66 100 . 100 62 11 . 100 100 100 100 100 67 13 . Level 1 19 | . . 33 . . . 37 10 100 . . . . . 32 63 . Level 2 27 | . . . . . . . 78 . . . . . . . 22 . Level 3 . | . . . . . . . . . . . . . . . . . Level 4 . | . . . . . . . . . . . . . . . . . Level 5 . | . . . . . . . . . . . . . . . . . High Security . | . . . . . . . . . . . . . . . . . Max Security 4 | . . . . . . . . . . . . . . . . 99 Squads Dispatched 39 | . 2 2 . . . 2 9 . . . 2 1 . 2 6 13 Investigation 4 | . 1 . . . . . 2 . . . . . . . 1 . Extermination 5 | . . . . . . . 4 . . . . . . . 1 . Reinforcement 13 | . 1 2 . . . 2 1 . . . 2 1 . 2 1 1 Assault 14 | . . . . . . . 2 . . . . . . . . 12 Garrison 3 | . . . . . . . . . . . . . . . 3 . Intercept . | . . . . . . . . . . . . . . . . . Searches Triggered 1 | . . . . . . . . . . . . . . . 1 . Construction Impeded 2 | . . . . . . . . . . . . . . . 1 1 Haulers Reinforced 1 | . . . . . . . 1 . . . . . . . . . Active Scanning Responses . | . . . . . . . . . . . . . . . . . Cargo Convoy Interrupts . | . . . . . . . . . . . . . . . . . Stealth | -11 -10 -9 -9 -9 -8 -8 -7 -6 -6 -6 -6 -5 -4 -4 -3 -3 --------- Run | Yrd Mat Mat Min Exi Min Mat Fac Fac Was Fac DSF Fac Fac DSF Res Qua Distress Signals 6 | . . 1 . . . 1 . . . . . . . . 3 1 Communications Jammed 45 | . . . . . . . 21 . . . . 24 . . . . Distress Signals 26 | . . . . . . . 21 . . . . 5 . . . . Times Spotted 179 | . 5 23 3 . . 15 29 . 5 . 4 6 1 11 44 33 Peak Tracking Total 21 | . 2 4 3 . . 4 4 . 2 . 2 3 1 5 17 21 Tactical Retreats 14 | . . 2 . . . 1 . . . . . . . 1 10 . Traps | -11 -10 -9 -9 -9 -8 -8 -7 -6 -6 -6 -6 -5 -4 -4 -3 -3 ------- Run | Yrd Mat Mat Min Exi Min Mat Fac Fac Was Fac DSF Fac Fac DSF Res Qua Traps Triggered 5 | . . . . . . . 3 1 . . . . . . 1 . Indirectly 2 | . . . . . . . 2 . . . . . . . . . Trap Hack Attempts . | . . . . . . . . . . . . . . . . . Triggered . | . . . . . . . . . . . . . . . . . Disarmed . | . . . . . . . . . . . . . . . . . Reprogrammed . | . . . . . . . . . . . . . . . . . Reused . | . . . . . . . . . . . . . . . . . Traps Extracted . | . . . . . . . . . . . . . . . . . Installed . | . . . . . . . . . . . . . . . . . Triggered . | . . . . . . . . . . . . . . . . . Machines | -11 -10 -9 -9 -9 -8 -8 -7 -6 -6 -6 -6 -5 -4 -4 -3 -3 ---------- Run | Yrd Mat Mat Min Exi Min Mat Fac Fac Was Fac DSF Fac Fac DSF Res Qua Machines Disabled 30 | . . . . . . 7 18 . . . 1 . . 1 1 2 Max in Single Turn 6 | . . . . . . 2 6 . . . 1 . . 1 1 1 Machines Repaired . | . . . . . . . . . . . . . . . . . Machines Dismantled . | . . . . . . . . . . . . . . . . . Machines Sabotaged . | . . . . . . . . . . . . . . . . . Overloaded Fab Kills . | . . . . . . . . . . . . . . . . . Hacking | -11 -10 -9 -9 -9 -8 -8 -7 -6 -6 -6 -6 -5 -4 -4 -3 -3 --------- Run | Yrd Mat Mat Min Exi Min Mat Fac Fac Was Fac DSF Fac Fac DSF Res Qua Machines Accessed 28 | . 3 . . 5 . . 11 . . 1 . 1 1 . 6 . Terminals 12 | . 3 . . . . . 5 . . 1 . 1 1 . 1 . Fabricators 2 | . . . . . . . 2 . . . . . . . . . Repair Stations 2 | . . . . . . . 1 . . . . . . . 1 . Recycling Units 2 | . . . . . . . 1 . . . . . . . 1 . Scanalyzers 3 | . . . . . . . 1 . . . . . . . 2 . Garrison Access 2 | . . . . . . . 1 . . . . . . . 1 . Total Hacks 97 | . 9 . . 50 . . 23 . . 2 . 3 1 . 9 . Successful 71 | . 5 . . 50 . . 9 . . 1 . . 1 . 5 . Failed 26 | . 4 . . . . . 14 . . 1 . 3 . . 4 . Catastrophic 4 | . . . . . . . 3 . . . . 1 . . . . Database Lockouts . | . . . . . . . . . . . . . . . . . Manual 29 | . 8 . . 1 . . 13 . . . . 3 . . 4 . Terminals 26 | . 9 . . . . . 10 . . 2 . 3 1 . 1 . Fabricators 4 | . . . . . . . 4 . . . . . . . . . Repair Stations 3 | . . . . . . . 2 . . . . . . . 1 . Recycling Units 5 | . . . . . . . 3 . . . . . . . 2 . Scanalyzers 5 | . . . . . . . 2 . . . . . . . 3 . Garrison Access 4 | . . . . . . . 2 . . . . . . . 2 . Terminal Hacks 59 | . 3 . . 50 . . 3 . . 1 . . 1 . 1 . Record 49 | . . . . 49 . . . . . . . . . . . . Prototype ID Bank 2 | . 2 . . . . . . . . . . . . . . . Open DSF 4 | . . . . . . . 1 . . 1 . . 1 . 1 . Unreport Threat 1 | . 1 . . . . . . . . . . . . . . . Zone Layout 2 | . . . . . . . 2 . . . . . . . . . Derelict Proto ID Bank 1 | . . . . 1 . . . . . . . . . . . . Fabricator Hacks 1 | . . . . . . . 1 . . . . . . . . . Build 1 | . . . . . . . 1 . . . . . . . . . Repair Station Hacks 1 | . . . . . . . . . . . . . . . 1 . Refit 1 | . . . . . . . . . . . . . . . 1 . Recycling Unit Hacks 1 | . . . . . . . . . . . . . . . 1 . Report Inventory 1 | . . . . . . . . . . . . . . . 1 . Scanalyzer 2 | . . . . . . . 2 . . . . . . . . . Insert Component 1 | . . . . . . . 1 . . . . . . . . . Analyze 1 | . . . . . . . 1 . . . . . . . . . Garrison Access Hacks 1 | . . . . . . . . . . . . . . . 1 . Unlock Access 1 | . . . . . . . . . . . . . . . 1 . Unauthorized Hacks 6 | . 2 . . . . . 3 . . . . . . . 1 . Terminals 4 | . 2 . . . . . 2 . . . . . . . . . Botnet 4 | . 2 . . . . . 2 . . . . . . . . . Fabricators . | . . . . . . . . . . . . . . . . . Repair Stations . | . . . . . . . . . . . . . . . . . Recycling Units 1 | . . . . . . . 1 . . . . . . . . . Tunnel 1 | . . . . . . . 1 . . . . . . . . . Scanalyzers 1 | . . . . . . . . . . . . . . . 1 . Extract 1 | . . . . . . . . . . . . . . . 1 . Garrison Access . | . . . . . . . . . . . . . . . . . Data Cores Recovered 1 | . . . . . . . . . . . . . 1 . . . Used . | . . . . . . . . . . . . . . . . . Hacking Detections 19 | . 3 . . . . . 11 . . 1 . 1 . . 3 . Full Trace Events 2 | . 1 . . . . . 1 . . . . . . . . . Feedback Events . | . . . . . . . . . . . . . . . . . Feedback Blocked . | . . . . . . . . . . . . . . . . . Robot Schematics Acquired . | . . . . . . . . . . . . . . . . . Robots Built . | . . . . . . . . . . . . . . . . . Authchips . | . . . . . . . . . . . . . . . . . Time . | . . . . . . . . . . . . . . . . . Total Robot Build Rating . | . . . . . . . . . . . . . . . . . Part Schematics Acquired 17 | . . . . . . . 1 . . . . . . . 16 . Parts Built 2 | . . . . . . . 2 . . . . . . . . . Authchips . | . . . . . . . . . . . . . . . . . Time 117 | . . . . . . . 117 . . . . . . . . . Total Part Build Rating 14 | . . . . . . . 14 . . . . . . . . . Parts Repaired . | . . . . . . . . . . . . . . . . . Time . | . . . . . . . . . . . . . . . . . Parts Recycled . | . . . . . . . . . . . . . . . . . Recycled Matter . | . . . . . . . . . . . . . . . . . Retrieved Matter . | . . . . . . . . . . . . . . . . . Retrieved Components . | . . . . . . . . . . . . . . . . . Parts Scanalyzed 1 | . . . . . . . 1 . . . . . . . . . Part Schematics Acquired 1 | . . . . . . . 1 . . . . . . . . . Parts Damaged 1 | . . . . . . . 1 . . . . . . . . . Bothacking | -11 -10 -9 -9 -9 -8 -8 -7 -6 -6 -6 -6 -5 -4 -4 -3 -3 ------------ Run | Yrd Mat Mat Min Exi Min Mat Fac Fac Was Fac DSF Fac Fac DSF Res Qua Used RIF Installer . | . . . . . . . . . . . . . . . . . Robots Hacked . | . . . . . . . . . . . . . . . . . Non-combat . | . . . . . . . . . . . . . . . . . Combat . | . . . . . . . . . . . . . . . . . Robot Hacks Applied . | . . . . . . . . . . . . . . . . . Relay Couplers Released . | . . . . . . . . . . . . . . . . . Fabnet Peak Effective % . | . . . . . . . . . . . . . . . . . Robots Rewired . | . . . . . . . . . . . . . . . . . Allies Hacked . | . . . . . . . . . . . . . . . . . Hacks Repelled . | . . . . . . . . . . . . . . . . . Allies | -11 -10 -9 -9 -9 -8 -8 -7 -6 -6 -6 -6 -5 -4 -4 -3 -3 -------- Run | Yrd Mat Mat Min Exi Min Mat Fac Fac Was Fac DSF Fac Fac DSF Res Qua Total Allies . | . . . . . . . . . . . . . . . . . Largest Group . | . . . . . . . . . . . . . . . . . Highest-Rated Group . | . . . . . . . . . . . . . . . . . Highest-Rated Ally . | . . . . . . . . . . . . . . . . . Total Orders . | . . . . . . . . . . . . . . . . . Ally Attacks . | . . . . . . . . . . . . . . . . . Total Damage . | . . . . . . . . . . . . . . . . . Kills . | . . . . . . . . . . . . . . . . . Allies Corrupted . | . . . . . . . . . . . . . . . . . Allies Melted . | . . . . . . . . . . . . . . . . . Intel | -11 -10 -9 -9 -9 -8 -8 -7 -6 -6 -6 -6 -5 -4 -4 -3 -3 ------- Run | Yrd Mat Mat Min Exi Min Mat Fac Fac Was Fac DSF Fac Fac DSF Res Qua Robot Analysis Total . | . . . . . . . . . . . . . . . . . Derelict Logs Recovered 1 | . . . 1 . . . . . . . . . . . . . Drone Launches . | . . . . . . . . . . . . . . . . . Drone Recoveries . | . . . . . . . . . . . . . . . . . Exploration | -11 -10 -9 -9 -9 -8 -8 -7 -6 -6 -6 -6 -5 -4 -4 -3 -3 ------------- Run | Yrd Mat Mat Min Exi Min Mat Fac Fac Was Fac DSF Fac Fac DSF Res Qua Turns Passed 7644 | 5 176 450 625 1206 261 582 2041 139 226 23 417 288 35 196 699 275 Spaces Moved 4647 | 5 128 179 332 635 134 260 949 71 95 14 157 98 16 74 1009 491 Core 27 | . . 24 . . . . . . . . . . . . . 3 Treads 1926 | . . . . 116 134 260 949 71 95 14 157 98 16 16 . . Legs 1107 | 5 128 123 332 519 . . . . . . . . . . . . Wheels 32 | . . 32 . . . . . . . . . . . . . . Hover 470 | . . . . . . . . . . . . . . 58 412 . Flight 1085 | . . . . . . . . . . . . . . . 597 488 Fastest Speed 30 | 120 120 100 120 160 160 150 157 157 160 160 160 160 160 56 30 30 Average Speed 122 | 120 120 115 171 188 189 159 157 157 161 160 160 160 160 85 42 36 Slowest Speed 240 | 120 120 150 190 240 240 230 157 163 163 160 240 160 160 160 120 100 Overloaded Moves . | . . . . . . . . . . . . . . . . . Propulsion Burnouts . | . . . . . . . . . . . . . . . . . Robots Hopped 7 | . . . . . . . . . . . . . . . 4 3 Cave-ins Triggered . | . . . . . . . . . . . . . . . . . Teleports 3 | . . . . . . . . . . . . . . . . 3 Exploration Rate (%) 37 | 2 29 9 76 90 42 27 30 3 80 1 75 4 . 55 24 48 Regions Visited 16 Branch Regions 4 Pre-discovered Areas 3 | . . . 1 1 . . 1 . . . . . . . . . Known Exits Taken 2 | . . . . . . . . . . 1 . . 1 . . . Unknown Exits Taken 10 | 1 1 1 1 1 1 1 1 . . . . 1 . . 1 . Scrap Searched 3 | . . . 3 . . . . . . . . . . . . . Spaces Dug 19 | . . . . . . . . . . . . . . . 18 1 Terrain Destroyed 78 | . 4 . . . . 23 16 . . . . 10 2 4 18 1 Melee 19 | . . . . . . . . . . . . . . . 18 1 Projectile 45 | . . . . . . 23 6 . . . . 10 2 4 . . AOE 14 | . 4 . . . . . 10 . . . . . . . . . Terrain Rammed . | . . . . . . . . . . . . . . . . . Walls Destroyed . | . . . . . . . . . . . . . . . . . Machines Disabled . | . . . . . . . . . . . . . . . . . Actions | -11 -10 -9 -9 -9 -8 -8 -7 -6 -6 -6 -6 -5 -4 -4 -3 -3 --------- Run | Yrd Mat Mat Min Exi Min Mat Fac Fac Was Fac DSF Fac Fac DSF Res Qua Total 6182 | 4 136 300 362 646 140 433 1466 100 157 14 310 181 21 172 1181 559 Wait 706 | . . 8 4 . 1 81 404 20 3 . 87 18 . 36 27 17 Move 4621 | 4 127 178 331 634 133 259 948 71 94 14 156 97 15 73 1002 485 Hop 5 | . . . . . . . . . . . . . . . 2 3 Pick Up 138 | . 1 14 4 4 1 31 10 1 10 . 19 5 2 3 19 14 Fast Attach 34 | . . 1 . . . 1 6 1 2 . . . . 8 13 2 Attach 96 | . 1 13 . 2 . 5 5 2 3 . 9 12 1 8 22 13 Detach 16 | . . . . . . . 3 1 1 . 1 . . 2 8 . Swap 40 | . . 2 3 2 2 6 3 2 6 . 7 4 . 2 1 . Drop 115 | . . 2 3 4 2 19 9 2 12 . 12 5 1 17 21 6 Fire 333 | . 7 80 13 . . 31 76 . 26 . 19 39 2 22 16 2 Melee 67 | . . 1 1 . . . 1 . . . . . . . 47 17 Ram 4 | . . . . . . . . . . . . . . 1 3 . Kick 4 | . . 1 3 . . . . . . . . . . . . . Crush 3 | . . . . . 1 . 1 . . . . 1 . . . . Escape Stasis . | . . . . . . . . . . . . . . . . . Rewire . | . . . . . . . . . . . . . . . . . Trap . | . . . . . . . . . . . . . . . . . Miscellaneous . | . . . . . . . . . . . . . . . . . Route ------- -11/Scrapyard -10/Materials -9/Materials -9/Mines -9/Exiles (discovered 2 exits: [*Min x2]) -8/Mines -8/Materials -7/Factory -6/Factory -6/Waste -6/Factory -6/DSF -5/Factory -4/Factory -4/DSF -3/Research (discovered 2 exits: [*Qua] / Gar) -3/Quarantine History --------- Turn | Location | Event 1 | -11/Scrapyard | Discovered new exit (range 3) 6 | -11/Scrapyard | Entered Materials 170 | -10/Materials | Discovered new exit (range 5) 182 | -10/Materials | Entered another Materials area 182 | -9/Materials | Evolved 2 slots: Propulsion x2 195 | -9/Materials | Discovered new exit (range 13) 549 | -9/Materials | Lost 6 parts (3n1u2w) 556 | -9/Materials | Core integrity fell below 50% 632 | -9/Materials | Entered Mines 747 | -9/Mines | Learned location of Zion (-7) 780 | -9/Mines | Core integrity fell below 20% 1010 | -9/Mines | Found a damaged Exp. Sensor Array with a note attached 1013 | -9/Mines | Found Prototype Device 1014 | -9/Mines | Identified Exp. Sensor Array 1035 | -9/Mines | Build established: Mutant 1248 | -9/Mines | Deemed a non-threat by the Exiles lab entrance 1250 | -9/Mines | Discovered new exit (range 5) 1257 | -9/Mines | Entered Exiles 1288 | -9/Exiles | Discovered new exit (range 15) 1309 | -9/Exiles | Met 8R-AWN 1341 | -9/Exiles | Met EX-HEX 1409 | -9/Exiles | Met EX-BIN 1615 | -9/Exiles | Met EX-DEC 1688 | -9/Exiles | Visited The Gauntlet 2031 | -9/Exiles | Discovered new exit (range 14) 2185 | -9/Exiles | Aligned with FarCom system 2187 | -9/Exiles | Given EX-Vault access code 2230 | -9/Exiles | Opened EX-Vault 2248 | -9/Exiles | Found XL Autogun Array 2283 | -9/Exiles | Warned to stay clear of 0b10 Research branches 2463 | -9/Exiles | Left Exiles lab with XL Autogun Array 2463 | -9/Exiles | Entered Mines 2701 | -8/Mines | Discovered new exit (range 14) 2724 | -8/Mines | Entered Materials 2724 | -8/Materials | Evolved 2 slots: Weapon x2 2886 | -8/Materials | Build established: Skirmisher 3182 | -8/Materials | Discovered new exit (range 7) 3306 | -8/Materials | Entered Factory 3306 | -7/Factory | Evolved 2 slots: Utility x2 3582 | -7/Factory | Build established: Scavenger-Skirmisher 4453 | -7/Factory | Fabricated Adv. Transmission Jammer (x2) 4506 | -7/Factory | First assault squad dispatched 5321 | -7/Factory | Discovered new exit (range 5) 5347 | -7/Factory | Entered another Factory area 5347 | -6/Factory | Evolved 2 slots: Utility x2 5486 | -6/Factory | Sucked down chute 5486 | -6/Factory | Entered Waste 5495 | -6/Waste | Spotted C-40 Crusher 5501 | -6/Waste | EMP discharged 5504 | -6/Waste | Spotted C-40 Crusher 5528 | -6/Waste | Spotted C-40 Crusher 5531 | -6/Waste | Spotted C-40 Crusher 5546 | -6/Waste | Destroyed C-40 Crusher 5549 | -6/Waste | Found Prototype Device 5550 | -6/Waste | Spotted C-40 Crusher 5565 | -6/Waste | Destroyed C-40 Crusher 5582 | -6/Waste | Destroyed C-40 Crusher 5591 | -6/Waste | Spotted C-40 Crusher 5601 | -6/Waste | EMP discharged 5601 | -6/Waste | System corruption reached 10% 5614 | -6/Waste | Destroyed C-40 Crusher 5630 | -6/Waste | Crushed by Compactor (1 part destroyed, 1 dropped) 5632 | -6/Waste | Destroyed C-40 Crusher 5672 | -6/Waste | Discovered new exit (range 20) 5701 | -6/Waste | EMP discharged 5712 | -6/Waste | Entered Factory 5735 | -6/Factory | Identified exit to DSF 5735 | -6/Factory | Entered DSF 5736 | -6/DSF | Joined Warlord attack on 0b10 via DSF 5769 | -6/DSF | Additional patrols routed to DSF 5795 | -6/DSF | Lost 4 allies 5842 | -6/DSF | Found Prototype Device 5926 | -6/DSF | Found Prototype Processor 5927 | -6/DSF | Identified Exp. Terrain Scan Processor 5962 | -6/DSF | Found Exp. Terrain Scan Processor 5976 | -6/DSF | Discovered new exit (range 8) 6152 | -6/DSF | Entered Factory 6152 | -5/Factory | Evolved 2 slots: Utility x2 6175 | -5/Factory | Build established: Skirmisher 6304 | -5/Factory | Discovered new exit (range 12) 6439 | -5/Factory | Identified Exp. ECM Suite 6440 | -5/Factory | Entered another Factory area 6440 | -4/Factory | Evolved 2 slots: Power x1, Utility x1 6475 | -4/Factory | Identified exit to DSF 6475 | -4/Factory | Entered DSF 6517 | -4/DSF | Discovered new exit (range 19) 6527 | -4/DSF | Additional patrols routed to DSF 6555 | -4/DSF | Identified Active Sensor Suite 6600 | -4/DSF | Found Adv. Powered Armor 6671 | -4/DSF | Entered Research 6671 | -3/Research | Evolved 2 slots: Propulsion x2 6699 | -3/Research | Lost 5 parts (2u3w) 6728 | -3/Research | Identified exit to Garrison 6763 | -3/Research | Garrison activated, responded to threat 6837 | -3/Research | Lost 3 parts (1p1n1w) 6907 | -3/Research | Lost 4 parts (1p2n1u) 6921 | -3/Research | Search patrols dispatched 6963 | -3/Research | Build established: Hacker-Mutant 7323 | -3/Research | Spotted B-86 Titan 7363 | -3/Research | Discovered new exit (range 18) 7363 | -3/Research | Spotted B-90 Cyclops 7370 | -3/Research | Entered Quarantine 7371 | -3/Quarantine | Maximum security lockdown engaged 7396 | -3/Quarantine | Lost 4 parts (1p3n) 7489 | -3/Quarantine | Found Alien Artifact 7490 | -3/Quarantine | Identified Transdimensional Reconstructor 7490 | -3/Quarantine | Warped through subspace 7531 | -3/Quarantine | System corruption reached 10% 7570 | -3/Quarantine | Core integrity fell below 50% 7596 | -3/Quarantine | Lost 5 parts (1p1n3u) 7634 | -3/Quarantine | Found Alien Artifact 7635 | -3/Quarantine | Spotted Investigator 7636 | -3/Quarantine | Found Transdimensional Reconstructor 7637 | -3/Quarantine | Identified Hpw. Transdimensional Reconstructor 7637 | -3/Quarantine | Warped through subspace 7644 | -3/Quarantine | Warped through subspace 7645 | -3/Quarantine | Self-destructed Last Messages --------------- 07625_ Penetrated by Slug. 07625_ Exp. Sensor Array destroyed. 07625_ Slug penetrates Wall. 07625_ Penetrated by Slug. 07628_ Slug penetrates Wall. 07629_ System corrupted: Nova Cannon failed to cycle. 07631_ Suspension Chamber breached. 07631_ Slug penetrates Wall. 07632_ Impulse Thruster Array destroyed. 07633_ C-30 ARC bursts open, deploying its payload. 07633_ G-73 Enforcer unfolds itself. 07633_ B-74 Champion unfolds itself. 07634_ Acquired Alien Artifact. 07634_ M-36 Artificer repairs G-67 Veteran. 07635_ Dropped Linear Accelerator. 07635_ Investigator: "PRIMARY THREAT IDENTIFIED. CONTAINMENT PROTOCOL APPLICABLE." 07636_ Acquired Transdimensional Reconstructor. 07637_ Identified Hpw. Transdimensional Reconstructor. 07637_ Warped through subspace. Map ----- +----------------------------------------------------+ | | | | | | | | | | | | | | | | | | | | | | | | | | | | | ?????????????????????????????????????????????????? | | #???????????????????????????????????????#######??? | | #??????????????????????????####?????????#"""""#??? | | #??????????????????????????# #???????###""T""#### | | #??????????????????????????# ######### | | #??????????????????????????# + "" """ | | #??????????????????????????#### # """ """ | | #??????????????????############ # "T """ | | #????????########??# # """ | | #????????#"""T"""??# # "" """ | | ??????####""" """### ! + "" | | ??????# # @ = # ! ! """ | | ??????# # ####" ######### | | ??????# """ """ # #??#"T#???????# | | ####### """ """ # ###########???# ! ! | | # """ """ = #h #???# | | # + #???##"" ""### | | # # #????#"""S"""#?? | | # # #????#########?? | | # " "" # ###########??????????????? | | # "R"" = # #????????????????????????? | | # """ # #??######????????????????? | | # # #?? """"#????????????????? | | """??##+########### #??""S""#????????????????? | | """"???# #?????????# ###"" ""###??????????????? | | ??# #?????????# # #??????????????? | | ?# #?????????# #= """"" #??????????????? | | ## #?????????# # ""R"" #??????????????? | | ######## ########### # " " #??????????????? | | %" [ + #??????????????? | | " [[!! # #??????????????? | | =% # #??????????????? | | [ # ! #??????????????? | | ##/######+########## ###########??????????????? | | # #??# #????????????????????????? | | / # """ """ #??# ########?????????????????? | +----------------------------------------------------+ Best States ------------- Heat Dissipation 74 Energy Generation 39 Energy Capacity 405 Matter Stores 350 Matter Capacity 700 Sight Range 20 Robot Scan Range 20 Terrain Scan Range 16 Terrain Scan Density 1010 ECM Strength 3 Jamming Range 16 Cloak Strength 3 Base Temperature (-) 200 EM Shielding 2 Armor Coverage 450 Core Shielding 20 Point Defense Rating 240 Weapon Cycling 15 Evasion (%) 64 Targeting Accuracy 8 Melee Accuracy 6 Target Analysis 12 Core Analysis 6 Armor Integrity Analysis 30 Recoil Reduction 4 Matter Filtering 30 Offensive Hacking 30 Defensive Hacking 10 Authchip Count 1 Item Schematics ----------------- Dynamic Insulation System | -7/Factory | Scanalyzed Mic. Antimatter Reactor | -3/Research | Extracted Quantum Rifle | -3/Research | Extracted Linear Accelerator | -3/Research | Extracted Mic. Fission Core | -3/Research | Extracted Adv. Terrain Scanner | -3/Research | Extracted Matter Neutralizer | -3/Research | Extracted Adv. Terrain Scan Processor | -3/Research | Extracted Imp. System Restoration Module | -3/Research | Extracted Com. Mass Driver | -3/Research | Extracted Tesla Rifle | -3/Research | Extracted Impulse Thruster Array | -3/Research | Extracted Arm. Huge Wheel | -3/Research | Extracted Imp. Shield Generator | -3/Research | Extracted Adv. Thermal Shield | -3/Research | Extracted Seismic Detector | -3/Research | Extracted Neutrino Core | -3/Research | Extracted Robot Schematics ------------------ None Fabricated ------------ Adv. Transmission Jammer | x2 | -7/Factory | Preloaded Alien Tech Used ----------------- Transdimensional Reconstructor High-powered Transdimensional Reconstructor Achievements -------------- None Challenges ------------ None Game ------ Seed AnalysisPrecisionCanceller Manual? 0 Play Time 01:54:27 Cumulative 92.9 hours Start 2025.01.15 @ 14:16:34 End 2025.01.15 @ 19:37:33 Sessions 1 Manual Loads 0 Difficulty Rogue Special Mode None Game No. 111 Rogue 96 Adventurer 15 Explorer 0 Win Type - Total 1 Types 0/0/1/0/0/0/0/0/0 Lore% 24 Gallery% 59 Achievement% 48 Wizard Run 0 Options --------- Layout 0 ASCII 0 Keyboard 0 Movement Mouse Keybinds 0 Fullscreen 2 Font 36/Smallcaps Map View 76x50 Zoom Use 0% Tactical HUD 1 Map Filters NONE Filters NONE Steam 1 RUN: 7da19394-7a45-4a75-b873-3a549d20c804